bitfinex/quotes_ETHUSD_20240917
["timestamp","ask_amount","ask_price","bid_price","bid_amount"]
[1726598686265,0.62439513,2363.2,2363.0,0.03382258]
[1726598686481,0.62439513,2363.1,2363.0,0.03382258]
[1726598687866,4.85611513,2363.1,2363.0,0.03382258]
[1726598688200,11.44743513,2363.1,2363.0,0.03382258]
[1726598688551,10.82304,2363.1,2363.0,0.03382258]
[1726598688750,12.07160637,2363.1,2363.0,0.03382258]
[1726598689187,16.30332637,2363.1,2363.0,0.03382258]
[1726598689390,17.93365901,2363.1,2363.0,0.03382258]
[1726598689613,26.15483899,2363.1,2363.0,0.03382258]
[1726598689756,21.92311899,2363.1,2363.0,0.03382258]
[1726598692614,21.29882474,2363.1,2363.0,0.03382258]
[1726598693570,25.53054474,2363.1,2363.0,0.03382258]
[1726598694301,21.29882474,2363.1,2363.0,0.03382258]
[1726598695690,21.29861279,2363.1,2363.0,0.03382258]
[1726598696112,21.74076031,2363.1,2363.0,0.03382258]
[1726598696410,22.37689275,2363.1,2363.0,0.03382258]
[1726598696572,21.74076031,2363.1,2363.0,0.03382258]
[1726598696779,22.37689887,2363.1,2363.0,0.03382258]
[1726598699112,21.74076336,2363.1,2363.0,0.03382258]
[1726598699264,22.37687271,2363.1,2363.0,0.03382258]
[1726598699463,22.37688183,2363.1,2363.0,0.03382258]
[1726598699668,21.74077248,2363.1,2363.0,0.03382258]
[1726598699868,17.59517125,2363.1,2363.0,0.03382258]
[1726598700071,12.32879626,2363.1,2363.0,0.03382258]
[1726598700294,0.8816075,2363.1,2363.0,0.03382258]
[1726598700500,2.14205354,2363.1,2363.0,18.22012258]
[1726598700767,4.23096,2363.6,2363.1,4.23168]
[1726598701017,2.2698,2364.2,2363.0,2.52442258]
[1726598701018,4.23129,2363.4,2363.0,2.52442258]
[1726598701166,0.62474502,2363.3,2363.0,2.52442258]
[1726598701525,4.23129,2363.4,2363.0,2.52442258]
[1726598702104,4.23139,2363.3,2363.0,0.03382258]
[1726598702305,8.46249,2363.4,2363.0,0.03382258]
[1726598702503,4.2311,2363.5,2363.0,4.26566258]
[1726598702668,4.2311,2363.5,2363.0,5.51804386]
[1726598703081,4.23093,2363.6,2363.1,10.72290018]
[1726598703506,4.23093,2363.6,2363.2,4.23152]
[1726598703711,4.23066,2363.7,2363.2,8.46297]
[1726598703920,4.23059,2363.8,2363.2,4.23145]
[1726598704072,4.23094,2363.6,2363.1,2.47]
[1726598704411,0.964099,2363.8,2363.1,2.47]
[1726598704412,4.23113,2363.5,2363.1,2.47]
[1726598704619,4.23113,2363.5,2363.0,0.03382258]
[1726598704774,8.46229,2363.5,2363.0,4.26568258]
[1726598704973,4.2312,2363.4,2363.0,0.03382258]
[1726598705380,4.23102,2363.5,2363.0,4.26563258]
[1726598706010,4.2309,2363.6,2363.0,1.11455384]
[1726598706317,4.23073,2363.7,2363.2,4.23147]
[1726598706619,0.60432883,2363.6,2363.3,6.60075]
[1726598706814,8.4612,2363.8,2363.3,7.683972]
[1726598706987,0.60443328,2363.7,2363.4,4.23109]
[1726598707181,4.23039,2363.9,2363.4,9.6537242]
[1726598707408,0.60448878,2363.8,2363.5,4.23091]
[1726598707705,4.23003,2364.1,2363.6,4.23066]
[1726598708008,0.60445866,2364.0,2363.6,5.43876542]
[1726598708215,0.60445866,2363.9,2363.6,5.43876542]
[1726598708515,4.22971,2364.3,2363.8,4.23047]
[1726598708516,4.22985,2364.2,2363.8,4.23047]
[1726598708673,0.60457089,2364.1,2363.7,9.67097354]
[1726598709013,4.22985,2364.2,2363.7,9.67097354]
[1726598709014,0.60457089,2364.0,2363.7,9.67097354]
[1726598709387,0.60457089,2363.9,2363.7,9.67089354]
[1726598709585,4.22971,2364.3,2363.9,4.23025]
[1726598709586,4.22968,2364.3,2363.9,4.23025]
[1726598709787,0.60441688,2364.2,2363.9,6.50455]
[1726598710112,4.22968,2364.3,2363.9,2.2743]
[1726598710113,0.60441688,2364.1,2363.9,2.2743]
[1726598710313,4.22967,2364.3,2363.9,2.2743]
[1726598710314,0.60433033,2364.0,2363.9,2.2743]
[1726598710519,4.22979,2364.2,2363.7,2.3948]
[1726598710816,4.22979,2364.2,2363.7,2.817871]
[1726598711001,4.23012,2364.0,2363.5,8.46181]
[1726598711173,4.22979,2364.2,2363.7,4.23055]
[1726598711781,4.22959,2364.3,2363.8,4.23045]
[1726598711983,4.22959,2364.3,2363.9,5.07636]
[1726598712297,8.45907,2364.4,2363.9,4.23026]
[1726598712519,4.22959,2364.3,2363.9,4.23026]
[1726598712683,4.22949,2364.4,2363.8,6.62525]
[1726598712878,4.22976,2364.2,2363.8,2.3948]
[1726598713216,4.23002,2364.1,2363.8,2.3948]
[1726598714413,4.2299,2364.2,2363.8,7.710804]
[1726598715472,4.2299,2364.2,2363.8,3.480414]
[1726598715676,8.45978,2364.2,2363.8,3.480414]
[1726598716108,8.45976,2364.2,2363.8,3.480414]
[1726598716413,0.44207336,2364.1,2363.8,3.480414]
[1726598716717,4.67203336,2364.1,2363.8,2.3948]
[1726598717012,0.44207336,2364.1,2363.8,6.6252]
[1726598717373,4.67202336,2364.1,2363.8,2.3948]
[1726598717805,4.23012,2364.0,2363.6,6.54991]
[1726598717990,4.67202336,2364.1,2363.6,6.54991]
[1726598718190,0.37719231,2364.0,2363.6,8.04714442]
[1726598718391,0.37719231,2363.9,2363.6,8.04714442]
[1726598718605,4.67202336,2364.1,2363.6,8.04714442]
[1726598718801,4.23029,2363.9,2363.6,3.81633442]
[1726598719016,4.23029,2363.9,2363.6,2.3191]
[1726598719216,4.23011,2364.0,2363.6,2.3191]
[1726598719403,4.23011,2364.0,2363.6,6.54991]
[1726598719923,0.37709135,2363.9,2363.6,2.3191]
[1726598720087,4.23011,2364.0,2363.6,2.3191]
[1726598720288,0.37709121,2363.9,2363.6,2.3191]
[1726598720605,4.60758448,2363.8,2363.4,6.58761]
[1726598720805,4.23048,2363.8,2363.4,6.58761]
[1726598721716,4.23048,2363.8,2363.4,10.8187]
[1726598722023,4.23048,2363.8,2363.4,10.81868]
[1726598722217,8.46077,2363.9,2363.4,10.81871]
[1726598722421,4.23037,2363.9,2363.4,10.81871]
[1726598722620,0.37707176,2363.8,2363.4,2.3565]
[1726598722821,4.23056,2363.8,2363.3,4.23132]
[1726598722996,4.23085,2363.6,2363.2,6.58802]
[1726598723343,4.23051,2363.8,2363.4,4.23118]
[1726598723520,4.23051,2363.8,2363.4,5.736221]
[1726598723831,4.23051,2363.8,2363.4,4.23118]
[1726598724030,4.23039,2363.9,2363.4,4.23118]
[1726598724208,8.46077,2363.9,2363.4,4.23118]
[1726598725012,4.23038,2363.9,2363.5,4.231]
[1726598725226,8.4608,2363.9,2363.5,4.231]
[1726598725539,4.23032,2363.9,2363.6,2.3276]
[1726598725902,4.2302,2364.0,2363.6,6.55834]
[1726598726099,4.23016,2364.0,2363.6,10.78906]
[1726598726329,0.44207336,2364.1,2363.7,4.23065]
[1726598726544,0.44207336,2364.1,2363.9,2.4818]
[1726598727494,0.44207336,2364.1,2364.0,4.23011]
[1726598727927,7.42,2364.4,2364.0,4.23011]
[1726598728133,11.6494,2364.4,2364.0,4.23004]
[1726598728334,12.09146884,2364.4,2364.0,8.46004]
[1726598728536,0.44206884,2364.4,2364.1,4.22987]
[1726598728841,0.44206884,2364.4,2364.3,4.22958]
[1726598729261,0.44206884,2364.4,2364.3,8.45916]
[1726598729537,0.44206884,2364.4,2364.3,15.17401751]
[1726598729773,7.42,2364.8,2364.7,4.22886]
[1726598730050,0.00516202,2365.1,2364.8,4.2286]
[1726598730212,0.00516202,2365.1,2364.7,6.62956]
[1726598730538,0.00516202,2365.1,2364.8,4.22866]
[1726598730902,0.00516202,2365.1,2365.0,4.22832]
[1726598731137,0.00516202,2365.1,2365.0,14.89895018]
[1726598731641,0.00516202,2365.1,2365.0,10.87774]
[1726598734602,0.00516202,2365.1,2365.0,6.64942]
[1726598736077,0.00516202,2365.1,2364.8,5.5091362]
[1726598736078,0.00516202,2365.1,2364.8,2.365]
[1726598736662,4.23339202,2365.1,2364.8,2.365]
[1726598736951,4.23339202,2365.1,2364.5,6.50429]
[1726598736952,4.22833,2365.0,2364.5,6.50429]
[1726598737650,4.22871,2364.8,2364.3,4.22944]
[1726598738249,4.02121018,2365.0,2364.2,6.50493]
[1726598738549,4.02121018,2365.0,2364.3,4.2295]
[1726598738550,4.22888,2364.7,2364.3,4.2295]
[1726598739013,8.45758,2364.8,2364.3,4.2295]
[1726598739212,4.22875,2364.8,2364.3,4.2295]
[1726598739629,8.45752,2364.8,2364.3,4.2295]
[1726598739953,4.22875,2364.8,2364.3,4.2295]
[1726598741023,4.22889,2364.7,2364.3,4.2295]
[1726598741213,4.22875,2364.8,2364.3,4.2295]
[1726598741214,8.4576,2364.8,2364.3,4.2295]
[1726598741416,6.70824,2365.0,2364.4,4.22938]
[1726598741649,2.4798,2365.0,2364.3,5.302958]
[1726598741945,4.2288,2364.8,2364.3,4.2295]
[1726598742249,4.22894,2364.7,2364.2,6.50487]
[1726598742749,4.22938,2364.5,2364.2,2.2752]
[1726598743064,4.22985,2364.2,2363.9,2.3039]
[1726598744623,4.22985,2364.2,2363.7,4.23065]
[1726598744836,4.2295,2364.4,2363.9,4.23019]
[1726598745020,4.22918,2364.6,2364.1,4.22991]
[1726598745223,4.22918,2364.6,2364.0,8.45998]
[1726598745224,4.22932,2364.5,2364.0,8.45998]
[1726598745408,4.22932,2364.5,2363.6,4.23082]
[1726598745409,4.23004,2364.1,2363.5,5.2758]
[1726598745612,4.22998,2364.1,2363.5,2.2758]
[1726598745858,4.22998,2364.1,2363.6,4.2307]
[1726598746160,4.22998,2364.1,2363.5,2.2758]
[1726598746161,4.23012,2364.0,2363.5,2.2758]
[1726598746315,4.23012,2364.0,2363.5,6.50679]
[1726598747008,4.23031,2363.9,2363.5,2.2758]
[1726598747207,4.23011,2364.0,2363.5,6.50679]
[1726598748340,4.23011,2364.0,2363.5,7.580575]
[1726598749215,4.22985,2364.2,2363.7,4.23057]
[1726598750344,4.22985,2364.2,2363.8,6.62287]
[1726598751051,6.93987994,2364.4,2363.8,6.62287]
[1726598751270,0.60324437,2364.3,2363.8,6.62287]
[1726598751433,4.22977,2364.2,2363.8,6.62287]
[1726598752648,8.45963,2364.2,2363.8,2.3924]
[1726598752855,4.23004,2364.1,2363.8,2.3924]
[1726598753061,4.23014,2364.0,2363.5,2.3645]
[1726598753381,4.23014,2364.0,2363.5,6.59543]
[1726598753382,4.23032,2363.9,2363.5,6.59543]
[1726598753534,4.23032,2363.9,2363.5,2.3645]
[1726598753929,4.23055,2363.8,2363.5,2.3645]
[1726598755456,8.46114,2363.8,2363.5,2.3645]
[1726598755666,4.23055,2363.8,2363.5,2.3645]
[1726598757445,4.23023,2364.0,2363.6,4.23073]
[1726598757646,4.2302,2364.0,2363.5,3.447192]
[1726598757894,4.23041,2363.9,2363.5,2.3645]
[1726598758051,8.46034,2364.0,2363.5,6.59538]
[1726598758685,4.23013,2364.0,2363.5,6.59538]
[1726598758889,4.23013,2364.0,2363.5,7.678023]
[1726598759882,4.23013,2364.0,2363.6,4.23082]
[1726598760279,4.23013,2364.0,2363.5,7.678143]
[1726598760449,4.2303,2363.9,2363.5,11.909073]
[1726598760658,4.23003,2364.1,2363.6,4.23078]
[1726598760659,4.23014,2364.0,2363.6,4.23078]
[1726598760864,4.23032,2363.9,2363.5,6.59548]
[1726598761092,0.44195086,2363.9,2363.5,6.59548]
[1726598761263,0.44195086,2363.9,2363.5,2.3645]
[1726598761475,4.23055,2363.8,2363.5,2.3645]
[1726598762569,4.67228086,2363.9,2363.5,2.3645]
[1726598762754,4.23058,2363.8,2363.5,2.3645]
[1726598762952,4.23051,2363.8,2363.3,2.3053]
[1726598763178,4.23051,2363.8,2363.4,4.23111]
[1726598763451,4.67228086,2363.9,2363.4,4.23111]
[1726598763821,0.44195086,2363.9,2363.6,2.4165]
[1726598764111,0.44195086,2363.9,2363.4,6.64717]
[1726598764406,4.23059,2363.8,2363.4,2.416]
[1726598765697,4.23131,2363.4,2363.1,2.416]
[1726598766263,4.23146,2363.3,2363.0,0.03382258]
[1726598766467,4.23172,2363.1,2363.0,0.03382258]
[1726598766965,4.23142,2363.3,2363.0,0.03382258]
[1726598767316,4.2313,2363.4,2363.0,0.03382258]
[1726598767460,4.2309,2363.6,2363.1,6.58938]
[1726598767660,4.2309,2363.6,2363.1,2.3578]
[1726598768187,1.75677785,2363.9,2363.7,4.2305]
[1726598768188,0.44195086,2363.9,2363.7,4.2305]
[1726598768392,0.44195086,2363.9,2363.3,8.25250018]
[1726598768393,0.44195086,2363.9,2363.6,4.23074]
[1726598768594,0.44195086,2363.9,2363.6,0.663644]
[1726598769109,0.44195086,2363.9,2363.4,2.4057]
[1726598769110,4.23079,2363.7,2363.4,2.4057]
[1726598770210,4.23074,2363.7,2363.4,2.4057]
[1726598770912,4.23091,2363.6,2363.0,7.26562258]
[1726598771206,8.46188,2363.6,2363.1,6.62243]
[1726598771402,4.02121018,2363.6,2363.1,2.3908]
[1726598771614,4.23138,2363.3,2363.0,0.03382258]
[1726598772169,4.2312,2363.4,2363.0,0.03382258]
[1726598772371,4.2312,2363.4,2363.0,4.26572258]
[1726598773384,4.2312,2363.4,2363.0,0.03382258]
[1726598775502,4.23104,2363.5,2363.1,2.3684]
[1726598775707,4.23123,2363.4,2363.1,2.3684]
[1726598775907,4.23104,2363.5,2363.1,2.3684]
[1726598776315,0.44194823,2363.4,2363.1,2.3684]
[1726598776916,0.44194823,2363.4,2363.1,6.60011]
[1726598777218,0.44194823,2363.4,2363.1,2.3684]
[1726598777468,0.44194823,2363.4,2363.1,6.60012]
[1726598777620,0.44194823,2363.4,2363.1,2.3684]
[1726598778509,4.67313823,2363.4,2363.1,2.3684]
[1726598778718,0.44194823,2363.4,2363.2,4.23138]
[1726598779216,0.44194823,2363.4,2363.3,10.83114]
[1726598779427,0.44194823,2363.4,2363.3,6.59977]
[1726598779934,0.44194823,2363.4,2363.3,10.83114]
[1726598780742,0.44194823,2363.4,2363.3,22.08372018]
[1726598781443,0.44194823,2363.4,2363.3,18.06251]
[1726598781775,0.44194823,2363.4,2363.3,20.37953594]
[1726598782660,0.44194823,2363.4,2363.3,16.14816594]
[1726598784232,0.44194823,2363.4,2363.3,24.40074612]
[1726598785253,0.44194823,2363.4,2363.3,20.16937612]
[1726598785427,0.44194823,2363.4,2363.3,24.40074612]
[1726598785830,0.44194823,2363.4,2363.3,20.16937612]
[1726598786465,0.44194823,2363.4,2363.3,24.40074612]
[1726598788080,0.44194823,2363.4,2363.3,28.63211612]
[1726598788242,8.73482699,2364.2,2363.9,4.23013]
[1726598788432,1.00143868,2364.1,2363.9,6.57793]
[1726598788633,1.00143868,2364.0,2363.9,6.57793]
[1726598789038,1.00143868,2364.0,2363.9,10.80822]
[1726598789952,1.00143868,2364.0,2363.9,6.57793]
[1726598790173,1.00143868,2364.0,2363.8,4.2304]
[1726598790334,1.75675775,2364.1,2363.8,4.23039]
[1726598790335,1.00143868,2363.9,2363.8,4.23039]
[1726598790536,1.00143868,2363.9,2363.7,4.23061]
[1726598790736,1.00143868,2363.9,2363.5,4.23089]
[1726598790973,1.00143868,2363.9,2363.6,7.23081]
[1726598790974,0.38519577,2363.8,2363.6,7.23081]
[1726598791476,1.0013196,2363.7,2363.6,7.23081]
[1726598791774,4.23083,2363.6,2363.0,0.03382258]
[1726598791984,1.32093592,2363.3,2363.0,0.03382258]
[1726598792151,1.6288808,2363.2,2363.0,0.03382258]
[1726598792350,1.6288808,2363.1,2363.0,4.26568258]
[1726598793381,1.6288808,2363.1,2363.0,5.11594584]
[1726598793687,1.64141791,2363.1,2363.0,5.11594584]
[1726598794182,0.62742008,2363.1,2363.0,5.11594584]
[1726598794338,0.62742008,2363.1,2363.0,4.26568258]
[1726598794536,1.64926494,2363.1,2363.0,4.26568258]
[1726598795480,1.64926494,2363.1,2363.0,8.49758258]
[1726598795974,1.64926494,2363.1,2363.0,4.26568258]
[1726598795975,1.02043733,2363.1,2363.0,4.26568258]
[1726598796181,1.64931225,2363.1,2363.0,0.03382258]
[1726598796589,1.64931225,2363.1,2363.0,4.26572258]
[1726598796750,1.02189217,2363.1,2363.0,4.26572258]
[1726598796952,1.64930086,2363.1,2363.0,4.26572258]
[1726598797182,1.02042594,2363.1,2363.0,4.26572258]
[1726598797392,0.62740869,2363.1,2363.0,4.26572258]
[1726598797599,1.02042594,2363.1,2363.0,4.26572258]
[1726598797751,0.62740869,2363.1,2363.0,4.26572258]
[1726598797954,1.02042594,2363.1,2363.0,4.26572258]
[1726598798174,1.64926077,2363.1,2363.0,4.26572258]
[1726598799571,1.64568808,2363.1,2363.0,4.26572258]
[1726598799891,1.64565865,2363.1,2363.0,9.34789184]
[1726598800092,1.32093592,2363.6,2363.3,4.23119]
[1726598800397,1.64363637,2363.5,2363.3,4.23119]
[1726598800615,0.6275118,2363.5,2363.4,4.23119]
[1726598800888,0.62752786,2363.5,2363.4,4.23119]
[1726598801104,1.74171319,2363.7,2363.4,4.23119]
[1726598801264,1.32093592,2363.6,2363.4,4.23119]
[1726598801469,1.64368673,2363.5,2363.4,4.23119]
[1726598801979,1.74171962,2363.7,2363.4,9.308618]
[1726598802158,1.02674815,2363.6,2363.5,8.46202]
[1726598802478,1.32093592,2363.9,2363.8,4.23047]
[1726598802649,2.34782111,2363.9,2363.8,4.23047]
[1726598803296,2.34782111,2363.9,2363.6,4.23083]
[1726598803297,2.34782111,2363.9,2363.7,4.23063]
[1726598803455,1.02688519,2363.8,2363.7,4.23063]
[1726598803959,2.34782111,2363.8,2363.7,4.23063]
[1726598804167,2.78976584,2363.8,2363.7,4.23063]
[1726598805093,2.78976584,2363.8,2363.6,4.23075]
[1726598805300,1.02688519,2363.7,2363.6,4.23075]
[1726598805454,1.02688519,2363.7,2363.5,4.23084]
[1726598805650,1.02688519,2363.6,2363.3,4.23124]
[1726598805876,1.02688519,2363.5,2363.3,5.190354]
[1726598806093,0.39495584,2363.4,2363.3,11.46261]
[1726598806953,1.02554499,2363.4,2363.3,11.46261]
[1726598807789,1.02554499,2363.4,2363.0,0.03382258]
[1726598807962,1.02554499,2363.4,2363.0,4.26564258]
[1726598807963,1.65423201,2363.3,2363.0,4.26564258]
[1726598808163,1.65423201,2363.2,2363.1,4.23172]
[1726598808365,1.65423201,2363.2,2363.0,0.03382258]
[1726598808592,1.65423201,2363.1,2363.0,0.03382258]
[1726598808791,1.65423201,2363.1,2363.0,4.26572258]
[1726598811328,1.32093592,2363.3,2363.0,4.26572258]
[1726598811505,0.63037917,2363.2,2363.0,4.26572258]
[1726598811811,5.98433266,2363.4,2363.0,4.26572258]
[1726598811812,1.65163004,2363.1,2363.0,5.35114584]
[1726598811970,1.41408701,2363.1,2363.0,9.58304584]
[1726598812170,2.67286958,2363.1,2363.0,9.58304584]
[1726598812366,3.06566046,2363.1,2363.0,9.58304584]
[1726598812592,3.06551317,2363.1,2363.0,9.58304584]
[1726598812798,3.06551317,2363.1,2363.0,16.81494584]
[1726598813009,2.43530995,2363.1,2363.0,19.22274584]
[1726598813213,2.17394379,2363.7,2363.4,4.23103]
[1726598813214,1.74177705,2363.7,2363.4,4.23103]
[1726598813382,0.40729746,2363.6,2363.4,4.23103]
[1726598813588,1.32093592,2363.7,2363.6,4.23083]
[1726598813879,0.40733101,2363.7,2363.6,4.23083]
[1726598814494,0.40733101,2363.7,2363.6,8.46166]
[1726598816017,0.40733101,2363.7,2363.6,11.46166]
[1726598816214,0.40733101,2363.7,2363.6,13.72373102]
[1726598817416,0.40733101,2363.7,2363.5,6.71469]
[1726598817722,0.40733101,2363.6,2363.5,7.23093]
[1726598818011,0.40733101,2363.6,2363.5,11.46194]
[1726598818375,0.44194473,2363.8,2363.7,4.23065]
[1726598818719,0.44194473,2363.8,2363.5,3.0]
[1726598818920,0.44194473,2363.8,2363.3,4.23133]
[1726598818921,0.88059095,2363.7,2363.3,4.23133]
[1726598819094,0.40034658,2363.6,2363.3,4.23133]
[1726598819415,0.40034658,2363.5,2363.3,8.46262]
[1726598819598,0.40034658,2363.4,2363.3,8.46262]
[1726598820102,0.40034658,2363.4,2363.3,4.23129]
[1726598820305,0.88059095,2363.6,2363.3,4.23129]
[1726598820475,0.88059095,2363.6,2363.4,4.23117]
[1726598820822,0.39802572,2363.5,2363.4,4.23112]
[1726598820977,0.39802572,2363.5,2363.4,8.46231]
[1726598821181,1.02310854,2363.5,2363.4,8.46231]
[1726598821502,1.02310854,2363.5,2363.4,9.308541]
[1726598822402,1.02310854,2363.5,2363.4,8.46231]
[1726598822613,1.02310854,2363.5,2363.4,4.23112]
[1726598822818,1.02310854,2363.5,2363.3,4.23128]
[1726598823036,1.02310854,2363.4,2363.3,4.23128]
[1726598823707,1.02310854,2363.4,2363.3,8.46265]
[1726598824012,1.02310854,2363.4,2363.3,9.40465203]
[1726598824214,1.02310854,2363.4,2363.1,4.23156]
[1726598824422,1.02310854,2363.3,2363.0,4.26570258]
[1726598824730,1.02310854,2363.3,2363.0,0.03382258]
[1726598824731,6.61362,2363.1,2363.0,0.03382258]
[1726598824893,8.54786779,2363.1,2363.0,0.03382258]
[1726598825092,8.94586649,2363.1,2363.0,0.03382258]
[1726598825432,8.94562978,2363.1,2363.0,0.03382258]
[1726598825940,13.17734978,2363.1,2363.0,0.03382258]
[1726598826106,16.03883983,2363.1,2363.0,0.03382258]
[1726598826434,16.03829035,2363.1,2363.0,0.03382258]
[1726598826641,12.22725889,2363.1,2363.0,0.03382258]
[1726598828235,16.45897889,2363.1,2363.0,0.03382258]
[1726598828531,18.44678636,2363.1,2363.0,0.03382258]
[1726598828740,22.05998061,2363.1,2363.0,0.03382258]
[1726598828906,22.5003695,2363.1,2363.0,0.03382258]
[1726598829111,25.13866684,2363.1,2363.0,0.03382258]
[1726598830166,22.5003695,2363.1,2363.0,0.03382258]
[1726598831943,4.23129,2363.4,2363.0,0.03382258]
[1726598832110,3.5031973,2363.1,2363.0,0.03382258]
[1726598832444,13.95159876,2363.1,2363.0,0.03382258]
[1726598832940,5.68042943,2363.1,2363.0,0.03382258]
[1726598833243,3.5031973,2363.1,2363.0,0.03382258]
[1726598833445,4.82086016,2363.1,2363.0,0.03382258]
[1726598833750,9.91214943,2363.1,2363.0,0.03382258]
[1726598834353,11.94834923,2363.1,2363.0,0.03382258]
[1726598834932,14.22064923,2363.1,2363.0,0.03382258]
[1726598835123,18.45236923,2363.1,2363.0,0.03382258]
[1726598835341,16.2751371,2363.1,2363.0,0.03382258]
[1726598837544,24.0568571,2363.1,2363.0,0.03382258]
[1726598837714,24.49735937,2363.1,2363.0,0.03382258]
[1726598838343,24.49735937,2363.1,2362.8,0.005]
[1726598838344,20.47832,2362.9,2362.8,0.005]
[1726598838550,25.89633018,2362.9,2362.8,0.005]
[1726598838713,24.29932454,2362.9,2362.8,0.005]
[1726598839248,25.89633018,2362.9,2362.8,0.005]
[1726598839477,25.89633018,2362.9,2362.7,0.005]
[1726598839478,22.82324,2362.8,2362.7,0.005]
[1726598839759,27.49332787,2362.8,2362.7,0.005]
[1726598839907,24.8594398,2362.8,2362.7,0.005]
[1726598840325,27.49196875,2362.8,2362.7,0.005]
[1726598840524,24.8594398,2362.8,2362.7,0.005]
[1726598841337,27.48985588,2362.8,2362.7,0.005]
[1726598842230,24.8594398,2362.8,2362.7,0.005]
[1726598842434,20.6271798,2362.8,2362.7,0.005]
[1726598842765,22.26848538,2362.8,2362.7,0.005]
[1726598842969,12.54456342,2362.8,2362.7,0.005]
[1726598843126,11.68535202,2362.8,2362.7,0.005]
[1726598843553,21.80455263,2362.8,2362.7,0.005]
[1726598843759,31.37887537,2362.8,2362.7,0.005]
[1726598843960,12.70056,2362.1,2362.0,0.00080423]
[1726598844128,27.94588391,2362.1,2362.0,0.00080423]
[1726598844568,29.98884943,2362.1,2362.0,0.00080423]
[1726598844737,30.38342942,2362.1,2362.0,0.00080423]
[1726598844940,32.85932942,2362.1,2362.0,0.00080423]
[1726598845178,32.85932942,2362.1,2361.6,0.0389846]
[1726598845179,12.70269,2361.7,2361.6,0.0389846]
[1726598845375,12.70269,2361.7,2360.9,0.0389846]
[1726598845376,11.25670018,2361.0,2360.9,0.0389846]
[1726598845610,11.65128017,2361.0,2360.9,0.0389846]
[1726598845899,2.16933847,2361.5,2360.9,0.0389846]
[1726598845900,4.89553553,2361.6,2360.9,0.0389846]
[1726598846060,4.23506,2361.3,2360.9,0.0389846]
[1726598846254,6.63789,2361.4,2360.9,0.0389846]
[1726598846673,10.8728,2361.4,2360.9,0.0389846]
[1726598846877,6.63789,2361.4,2360.9,0.0389846]
[1726598847100,6.63727,2361.8,2360.9,4.2745346]
[1726598847278,4.23437,2361.7,2361.1,4.2353]
[1726598847959,0.44210834,2361.6,2361.1,4.23521]
[1726598848675,0.44210834,2361.6,2361.1,4.23519]
[1726598849206,4.67651834,2361.6,2361.1,4.23519]
[1726598849376,4.67651834,2361.6,2361.2,0.93311147]
[1726598849695,0.44210834,2361.6,2361.2,0.93311147]
[1726598850463,0.44210834,2361.6,2361.2,5.16821147]
[1726598850661,0.44210834,2361.6,2361.2,0.93311147]
[1726598851481,4.23461,2361.5,2361.2,0.93311147]
[1726598851803,4.23461,2361.5,2361.0,8.31016448]
[1726598853199,4.23461,2361.5,2361.0,4.07471448]
[1726598853410,4.23461,2361.5,2361.0,8.31018448]
[1726598853579,0.44210834,2361.6,2361.0,8.31018448]
[1726598853580,4.67652834,2361.6,2361.0,8.31018448]
[1726598853968,8.46931,2361.5,2361.0,1.07471448]
[1726598854166,4.2346,2361.5,2361.0,1.07471448]
[1726598854396,4.2346,2361.5,2361.0,5.31015448]
[1726598855494,4.2346,2361.5,2361.0,1.07471448]
[1726598856401,4.2346,2361.5,2361.1,0.53492391]
[1726598858247,11.6539,2361.9,2361.1,0.53492391]
[1726598858248,7.42,2361.9,2361.4,2.3963]
[1726598858544,7.42,2362.3,2362.1,4.2334]
[1726598858701,2.4636,2363.0,2362.2,8.67789018]
[1726598858998,7.42,2363.2,2362.7,4.02121018]
[1726598858999,4.23156,2363.2,2362.7,4.02121018]
[1726598859202,4.23156,2363.2,2362.5,4.02121018]
[1726598859427,4.23202,2363.0,2362.5,4.02121018]
[1726598859765,8.25294018,2363.1,2362.3,2.4065]
[1726598860034,4.23246,2362.7,2362.3,2.4065]
[1726598860321,8.46411,2363.0,2362.3,6.63962]
[1726598860469,8.46412,2363.0,2362.3,6.63962]
[1726598860638,4.23204,2363.0,2362.4,4.23293]
[1726598860836,4.23202,2363.0,2362.3,6.63956]
[1726598861035,4.23216,2362.9,2362.3,6.63956]
[1726598862272,4.887572,2363.0,2362.4,4.23286]
[1726598862473,0.655632,2363.0,2362.5,4.2328]
[1726598862644,4.23193,2363.0,2362.4,8.25416018]
[1726598862849,4.23193,2363.0,2362.4,4.23295]
[1726598863535,4.23216,2362.9,2362.3,10.87264]
[1726598863742,4.23193,2363.0,2362.3,12.36202502]
[1726598863977,8.464,2363.0,2362.3,8.12894502]
[1726598864162,8.46433,2362.9,2362.3,8.12890502]
[1726598864460,2.436,2362.6,2362.0,4.02121018]
[1726598864674,4.23306,2362.4,2361.9,2.3511]
[1726598865260,4.23324,2362.3,2361.9,2.3511]
[1726598865488,4.23338,2362.2,2361.9,2.3511]
[1726598866293,4.23309,2362.4,2361.9,2.3511]
[1726598866294,4.23319,2362.3,2361.9,2.3511]
[1726598867489,4.23338,2362.2,2361.9,2.3511]
[1726598869256,4.23319,2362.3,2361.9,2.3511]
[1726598869468,0.39532853,2362.2,2361.9,2.3511]
[1726598869800,4.23337,2362.2,2361.9,2.3511]
[1726598870199,0.39539693,2362.1,2361.9,2.3511]
[1726598870390,4.23337,2362.2,2361.9,2.3511]
[1726598870578,0.39536575,2362.1,2361.9,2.3511]
[1726598870901,4.23337,2362.2,2361.9,2.3511]
[1726598871502,0.39534409,2362.1,2361.9,2.3511]
[1726598871701,4.23288,2362.5,2361.9,2.58621]
[1726598871995,0.39532395,2362.4,2362.0,4.02121018]
[1726598872199,4.23282,2362.5,2362.1,0.66074202]
[1726598872414,0.39536514,2362.4,2362.1,0.66074202]
[1726598872556,4.23271,2362.6,2362.1,0.66074202]
[1726598872760,0.3953647,2362.5,2362.1,0.66074202]
[1726598872958,0.3953647,2362.4,2362.1,0.66074202]
[1726598873202,0.39535544,2362.3,2362.2,0.89156422]
[1726598873499,4.23271,2362.6,2362.1,4.89425202]
[1726598873708,1.02790587,2362.5,2362.1,0.66074202]
[1726598873997,5.26074587,2362.5,2362.0,4.23367]
[1726598874170,1.02787591,2362.4,2361.9,2.3511]
[1726598874371,4.62840801,2362.4,2361.9,2.3511]